Cogmind - Beta 13 X1 @@@ ROGUE MODE // 2023.10.26 @ 20:25:34 Player: Plexion Result: Destroyed by 7V-RTL with Dispersion Rifle Performance ------------- Evolutions (1) 500 Regions Visited (6) 1200 Robots Destroyed (45) 225 Value Destroyed (635) 635 Prototype IDs (7) 140 Alien Tech Used (0) 0 Bonus (56) 56 TOTAL SCORE: 2756 Bonus ------- Follower Combat Kills 56 Cogmind --------- Core Integrity 0/400 Matter 120/300 Energy 99/100 System Corruption 0% Temperature Cool (9) Movement Core (800) Ox15 Location -8/Mines Parts ------- > --- POWER (1) -------- (None) > --- PROPULSION (3) --- (None) > --- UTILITY (3) ------ High-capacity Storage Unit Experimental Core Analyzer > --- WEAPON (2) ------- Axe Axe > --- INVENTORY (20) --- Reinforced Fission Core Advanced Myomer Leg Gravmag Array Large Storage Unit Experimental Targeting Computer Light Armor Plating Makeshift Hacking Suite Advanced Component Analysis Suite Improved Assault Rifle Improved Assault Rifle 8R-AWN's Boregun 8R-AWN's Boregun Grenade Launcher Mini Grenade Launcher Axe Axe Peak State ------------ > --- POWER ------------ Heavy Deuterium Engine > --- PROPULSION ------- Light Treads Light Treads Light Treads > --- UTILITY ---------- High-capacity Storage Unit Experimental Core Analyzer Light Armor Plating > --- WEAPON ----------- 8R-AWN's Boregun 8R-AWN's Boregun > --- INVENTORY -------- Reinforced Fission Core Light Treads Advanced Myomer Leg Gravmag Array Large Storage Unit Experimental Targeting Computer Light Armor Plating Light Armor Plating Makeshift Hacking Suite Advanced Component Analysis Suite Improved Assault Rifle Improved Assault Rifle Grenade Launcher Mini Grenade Launcher Axe Axe Axe Axe Makeshift Sword [Rating: 47] Favorites ----------- Power Light Ion Engine Engine Light Ion Engine Power Core Reinforced Fission Core Propulsion Light Treads Treads Light Treads Utility Light Armor Plating Device Shield Generator Storage Large Storage Unit Processor Experimental Core Analyzer Protection Light Armor Plating Weapon Heavy Assault Rifle Energy Gun EM Pulse Gun Ballistic Gun Heavy Assault Rifle Launcher Mini Grenade Launcher Slashing Weapon Makeshift Sword Build | -11 -10 -10 -9 -9 -9 -8 ------- Run | Jun Mat Min Mat Min Exi Min Slots Evolved 2 | . . . 2 . . . Power . | . . . . . . . Propulsion 1 | . . . 1 . . . Utility 1 | . . . 1 . . . Weapon . | . . . . . . . Parts Attached 57 | 7 5 . 19 2 17 7 Power 5 | 2 . . 1 . 2 . Engine 4 | 2 . . 1 . 1 . Core 1 | . . . . . 1 . Reactor . | . . . . . . . Propulsion 13 | 2 . . 8 . 2 1 Treads 13 | 2 . . 8 . 2 1 Leg . | . . . . . . . Wheel . | . . . . . . . Hover . | . . . . . . . Flight . | . . . . . . . Utility 18 | 1 2 . 4 . 9 2 Device 4 | . . . 1 . 3 . Storage 5 | 1 1 . . . 3 . Processor 1 | . . . . . . 1 Hackware . | . . . . . . . Protection 8 | . 1 . 3 . 3 1 Artifact . | . . . . . . . Weapon 21 | 2 3 . 6 2 4 4 Energy Gun 3 | 2 1 . . . . . Energy Cannon . | . . . . . . . Ballistic Gun 10 | . 2 . 5 1 1 1 Ballistic Cannon . | . . . . . . . Launcher 2 | . . . 1 . 1 . Special Weapon . | . . . . . . . Impact Weapon . | . . . . . . . Slashing Weapon 6 | . . . . 1 2 3 Piercing Weapon . | . . . . . . . Special Melee Weapon . | . . . . . . . Unidentified Prototypes 7 | . . . 1 . 5 1 Parts Lost 13 | . . . . . 5 8 Power 2 | . . . . . 1 1 Propulsion 6 | . . . . . 2 4 Utility 4 | . . . . . 2 2 Weapon 1 | . . . . . . 1 Highest Loss Streak 8 | . . . . . 5 8 To Critical Strikes 4 | . . . . . 3 1 Average Slot Usage (%) 99 | . 98 100 99 100 99 92 Engine 10 | . 14 14 11 11 7 11 Core 1 | . . . . . 3 . Treads 31 | . 28 28 32 33 33 25 Device 4 | . . . 3 11 4 . Storage 11 | . 14 14 11 11 11 11 Protection 15 | . 12 14 18 11 17 15 Energy Gun 3 | . 24 . . . . . Ballistic Gun 16 | . 3 28 22 22 12 9 Slashing Weapon 3 | . . . . . 9 12 Naked Turns . | . . . . . . . Heaviest Build 66 | 14 32 30 37 34 65 66 Greatest Support 63 | 40 40 40 63 60 60 60 Greatest Overweight (x) 1 | . . . . . 1 1 Average Overweight (x) . | . . . . . . . Largest Inventory Capacity 20 | 8 15 15 15 15 20 20 Average Capacity 15 | 7 12 15 15 15 16 20 Most Carried 20 | 2 15 15 15 15 20 20 Average Carried 14 | 1 10 15 14 14 15 19 Final Capacity 20 | 8 15 15 15 15 20 20 Final Carried 20 | 2 15 15 15 15 20 17 Class Distribution -------------------- 67% | Scavenger-Mutant 32% | Mutant Dominant Class ---------------- Mutant | -10/Materials Mutant | -10/Mines Scavenger-Mutant | -9/Materials Scavenger-Mutant | -9/Mines Scavenger-Mutant | -9/Exiles Scavenger-Mutant | -8/Mines Resources | -11 -10 -10 -9 -9 -9 -8 ----------- Run | Jun Mat Min Mat Min Exi Min Matter Collected 1512 | 239 87 . 449 32 705 . Remotely . | . . . . . . . Salvage Created 1863 | . 486 . 695 49 633 . Parts 158 | . 29 . 51 . 78 . Haulers Intercepted 7 | . 2 . 5 . . . Recyclers Shooed . | . . . . . . . Parts Field Recycled . | . . . . . . . Retrieved Matter . | . . . . . . . Parts Self-Destructed . | . . . . . . . Prevented . | . . . . . . . Kills | -11 -10 -10 -9 -9 -9 -8 ------- Run | Jun Mat Min Mat Min Exi Min Combat Hostiles Destroyed 22 | . 6 . 12 . 4 . Melee 1 | . . . . . 1 . Guns 17 | . 5 . 12 . . . AOE 4 | . 1 . . . 3 . Classes Destroyed 12 | . 6 . 3 . 3 . Worker 2 | . . . 2 . . . Builder 1 | . 1 . . . . . Hauler 7 | . 2 . 5 . . . Recycler 2 | . 1 . . 1 . . Turret 1 | . . . . . 1 . Watcher 3 | . 3 . . . . . Swarmer 10 | . 3 . 7 . . . Grunt 4 | . 3 . 1 . . . Brawler 1 | . . . 1 . . . Sentry 3 | . . . 3 . . . Zionite 8 | . . . . . 8 . Assembled 3 | . . . . . 3 . Best Kill Streak 10 | . 4 . 6 1 10 . Combat Bots Only 4 | . 3 . 4 . 3 . Max Kills in Single Turn 2 | . 1 . 1 1 2 . Gunslinging . | . . . . . . . Exploded 2 | . 1 . . . 2 . Melee 1 | . . . . . 1 . Uniques/NPCs Destroyed 4 | . . . . . 4 . 8R-AWN (-9/Exiles) EX-DEC (-9/Exiles) EX-HEX (-9/Exiles) EX-BIN (-9/Exiles) Combat | -11 -10 -10 -9 -9 -9 -8 -------- Run | Jun Mat Min Mat Min Exi Min Damage Taken 2573 | . 253 . 531 . 738 1051 Core 462 | . 51 . 82 . 141 188 Absorbed by Shields 49 | . . . . . 49 . Regen/Repaired (Parts) 53 | . . . 53 . . . Core Remaining (%) 89 | 100 . 79 . . . . Volleys Fired 198 | . 30 . 58 2 98 10 Largest 2 | . 2 . 2 2 1 2 Hottest 90 | . 90 . 46 46 30 60 Shots Fired 298 | . 60 . 116 4 98 20 Gun 296 | . 60 . 116 4 96 20 Cannon . | . . . . . . . Launcher 2 | . . . . . 2 . Special . | . . . . . . . Kinetic 242 | . 6 . 116 4 96 20 Thermal 11 | . 11 . . . . . Explosive 2 | . . . . . 2 . Electromagnetic 43 | . 43 . . . . . Robot Hit Streak 10 | . 6 . 10 8 5 7 Robot Miss Streak 7 | . 6 . 3 1 7 1 Penetration Max 1 | . . . . . 1 . Secondary Targets 2 | . 1 . 1 . . . Max Gunslinging Chain 1 | . 1 . 1 . . . Shots Hit Robots 224 | . 31 . 82 3 75 33 Core Hits 92 | . 17 1 30 2 29 13 Critical Kills 6 | . . . . . 6 . Critical Parts Destroyed 12 | . . . 1 . 10 1 Critical Strikes 28 | . 4 . 1 . 18 5 Burn 1 | . 1 . . . . . Destroy 20 | . . . 1 . 16 3 Corrupt 3 | . 3 . . . . . Sever 4 | . . . . . 2 2 Melee Attacks 83 | . . . . 1 54 28 Impact . | . . . . . . . Slashing 83 | . . . . 1 54 28 Piercing . | . . . . . . . Sneak Attacks . | . . . . . . . Combat Hostiles . | . . . . . . . Follow-up Attacks 6 | . . . . . 4 2 Damage Inflicted 4865 | . 638 11 1068 83 2114 951 Guns 2402 | . 434 . 1053 48 703 164 Cannons . | . . . . . . . Explosions 364 | . 200 . . . 164 . Melee 2034 | . . . . . 1247 787 Ramming 65 | . 4 11 15 35 . . Kinetic 1997 | . 29 . 1053 48 703 164 Thermal 267 | . 267 . . . . . Explosive 164 | . . . . . 164 . Electromagnetic 338 | . 338 . . . . . Impact . | . . . . . . . Slashing 2034 | . . . . . 1247 787 Piercing . | . . . . . . . Highest Corruption . | . . . . . . . Average Corruption . | . . . . . . . Corruption Purged . | . . . . . . . Corruption Blocked . | . . . . . . . Overload Shots . | . . . . . . . Overflow Damage 52 | . . . . . 52 . Projectiles . | . . . . . . . Explosions 16 | . . . . . 16 . Melee 36 | . . . . . 36 . Knockbacks 1 | . . . . 1 . . Impact 1 | . . . . 1 . . Kinetic . | . . . . . . . Secondary . | . . . . . . . Self-Inflicted Damage . | . . . . . . . Shots . | . . . . . . . Rammed 9 | . 1 2 2 4 . . Targets Rammed 10 | . 1 2 2 5 . . Kicked . | . . . . . . . Crushed 1 | . . . . 1 . . Highest Temperature 366 | . 366 . 34 . 243 63 Average Temperature 92 | . 128 . 11 . 120 34 Received Heat Transfer 381 | . 87 . 123 . . 171 Effects 1 | . 1 . . . . . Energy Bleed 1 | . 1 . . . . . Siege Activations . | . . . . . . . Robots Corrupted . | . . . . . . . Combat Hostiles . | . . . . . . . Parts Fried 3 | . 3 . . . . . Impact Corruptions . | . . . . . . . Robots Melted . | . . . . . . . Combat Hostiles . | . . . . . . . Parts Melted . | . . . . . . . Heat Transferred 609 | . 609 . . . . . Parts Sabotaged . | . . . . . . . Parts Stolen . | . . . . . . . Parts Stripped . | . . . . . . . Power Chain Reactions 3 | . 3 . . . . . Missiles Intercepted . | . . . . . . . Alert | -11 -10 -10 -9 -9 -9 -8 ------- Run | Jun Mat Min Mat Min Exi Min Peak Influence 329 | . 285 . 329 143 . 7 Initial 79 | . . . . 79 . . Average 84 | . 94 . 190 59 . . Maximum Alert Level 1 | . 1 . 1 . . . Low Security (%) 84 | 100 83 100 52 100 . 100 Level 1 15 | . 16 . 47 . . . Level 2 . | . . . . . . . Level 3 . | . . . . . . . Level 4 . | . . . . . . . Level 5 . | . . . . . . . High Security . | . . . . . . . Max Security . | . . . . . . . Squads Dispatched 2 | . 1 . 1 . . . Investigation . | . . . . . . . Extermination . | . . . . . . . Reinforcement 2 | . 1 . 1 . . . Assault . | . . . . . . . Garrison . | . . . . . . . Intercept . | . . . . . . . Searches Triggered . | . . . . . . . Construction Impeded . | . . . . . . . Haulers Reinforced . | . . . . . . . Active Scanning Responses . | . . . . . . . Cargo Convoy Interrupts . | . . . . . . . Stealth | -11 -10 -10 -9 -9 -9 -8 --------- Run | Jun Mat Min Mat Min Exi Min Distress Signals 1 | . 1 . . . . . Communications Jammed . | . . . . . . . Distress Signals . | . . . . . . . Times Spotted 63 | . 11 . 23 6 22 1 Peak Tracking Total 9 | . 4 . 5 7 9 1 Tactical Retreats 10 | . 1 . 4 . 5 . Traps | -11 -10 -10 -9 -9 -9 -8 ------- Run | Jun Mat Min Mat Min Exi Min Traps Triggered . | . . . . . . . Indirectly . | . . . . . . . Trap Hack Attempts . | . . . . . . . Triggered . | . . . . . . . Disarmed . | . . . . . . . Reprogrammed . | . . . . . . . Reused . | . . . . . . . Traps Extracted . | . . . . . . . Installed . | . . . . . . . Triggered . | . . . . . . . Machines | -11 -10 -10 -9 -9 -9 -8 ---------- Run | Jun Mat Min Mat Min Exi Min Machines Disabled 17 | . 3 . . 2 12 . Max in Single Turn 1 | . 1 . . . 1 . Machines Repaired . | . . . . . . . Machines Sabotaged . | . . . . . . . Overloaded Fab Kills . | . . . . . . . Hacking | -11 -10 -10 -9 -9 -9 -8 --------- Run | Jun Mat Min Mat Min Exi Min Machines Accessed 5 | . 2 . 2 . 1 . Terminals 2 | . 2 . . . . . Fabricators . | . . . . . . . Repair Stations 1 | . . . 1 . . . Recycling Units 1 | . . . 1 . . . Scanalyzers . | . . . . . . . Garrison Access . | . . . . . . . Total Hacks 11 | . 4 . 6 . 1 . Successful 8 | . 2 . 5 . 1 . Failed 3 | . 2 . 1 . . . Catastrophic 1 | . . . 1 . . . Database Lockouts . | . . . . . . . Manual 9 | . 5 . 4 . . . Terminals 4 | . 4 . . . . . Fabricators . | . . . . . . . Repair Stations 2 | . . . 2 . . . Recycling Units 4 | . . . 4 . . . Scanalyzers . | . . . . . . . Garrison Access . | . . . . . . . Terminal Hacks 3 | . 2 . . . 1 . Record 1 | . . . . . 1 . Robot Analysis 1 | . 1 . . . . . Zone Layout 1 | . 1 . . . . . Fabricator Hacks . | . . . . . . . Repair Station Hacks 2 | . . . 2 . . . Scan Component 1 | . . . 1 . . . Repair 1 | . . . 1 . . . Recycling Unit Hacks . | . . . . . . . Scanalyzer . | . . . . . . . Garrison Access Hacks . | . . . . . . . Unauthorized Hacks 3 | . . . 3 . . . Terminals . | . . . . . . . Fabricators . | . . . . . . . Repair Stations . | . . . . . . . Recycling Units 3 | . . . 3 . . . Reject 1 | . . . 1 . . . Recyclers 1 | . . . 1 . . . Mask 1 | . . . 1 . . . Scanalyzers . | . . . . . . . Garrison Access . | . . . . . . . Data Cores Recovered . | . . . . . . . Used . | . . . . . . . Hacking Detections 2 | . 2 . . . . . Full Trace Events . | . . . . . . . Feedback Events . | . . . . . . . Feedback Blocked . | . . . . . . . Robot Schematics Acquired . | . . . . . . . Robots Built . | . . . . . . . Authchips . | . . . . . . . Time . | . . . . . . . Total Robot Build Rating . | . . . . . . . Part Schematics Acquired . | . . . . . . . Parts Built . | . . . . . . . Authchips . | . . . . . . . Time . | . . . . . . . Total Part Build Rating . | . . . . . . . Parts Repaired 1 | . . . 1 . . . Time 26 | . . . 26 . . . Parts Recycled . | . . . . . . . Recycled Matter . | . . . . . . . Retrieved Matter . | . . . . . . . Retrieved Components . | . . . . . . . Parts Scanalyzed . | . . . . . . . Part Schematics Acquired . | . . . . . . . Parts Damaged . | . . . . . . . Bothacking | -11 -10 -10 -9 -9 -9 -8 ------------ Run | Jun Mat Min Mat Min Exi Min Used RIF Installer . | . . . . . . . Robots Hacked . | . . . . . . . Non-combat . | . . . . . . . Combat . | . . . . . . . Robot Hacks Applied . | . . . . . . . Relay Couplers Released . | . . . . . . . Fabnet Peak Effective % . | . . . . . . . Robots Rewired . | . . . . . . . Allies Hacked . | . . . . . . . Hacks Repelled . | . . . . . . . Allies | -11 -10 -10 -9 -9 -9 -8 -------- Run | Jun Mat Min Mat Min Exi Min Total Allies 6 | . . . . 6 . . Largest Group 4 | . . . . 4 2 1 Highest-Rated Group 73 | . . . . 73 42 16 Highest-Rated Ally 31 | . . . . 31 26 16 Total Orders 3 | . . . . . 2 1 STAY 2 | . . . . . 1 1 FOLLOW 1 | . . . . . 1 . Ally Attacks 46 | . . . . 26 4 16 Total Damage 458 | . . . . 247 15 196 Kills 9 | . . . . 8 1 . Allies Corrupted . | . . . . . . . Allies Melted . | . . . . . . . Intel | -11 -10 -10 -9 -9 -9 -8 ------- Run | Jun Mat Min Mat Min Exi Min Robot Analysis Total 1 | . 1 . . . . . Derelict Logs Recovered 4 | . . 2 . 2 . . Drone Launches . | . . . . . . . Drone Recoveries . | . . . . . . . Exploration | -11 -10 -10 -9 -9 -9 -8 ------------- Run | Jun Mat Min Mat Min Exi Min Turns Passed 6398 | 72 812 680 996 1257 2376 205 Spaces Moved 3227 | 42 413 424 444 754 1129 21 Core 5 | 5 . . . . . . Treads 3222 | 37 413 424 444 754 1129 21 Legs . | . . . . . . . Wheels . | . . . . . . . Hover . | . . . . . . . Flight . | . . . . . . . Fastest Speed 50 | 50 160 160 160 160 160 160 Average Speed 165 | 146 160 160 160 160 175 232 Slowest Speed 240 | 160 160 160 160 160 240 240 Overloaded Moves . | . . . . . . . Propulsion Burnouts . | . . . . . . . Robots Hopped . | . . . . . . . Cave-ins Triggered . | . . . . . . . Exploration Rate (%) 53 | 4 60 93 34 98 77 7 Regions Visited 6 Branch Regions 4 Pre-discovered Areas 1 | . . . . . 1 . Known Exits Taken 1 | . . . 1 . . . Unknown Exits Taken 5 | 1 1 1 . 1 1 . Scrap Searched 3 | . . 1 . 2 . . Spaces Dug 2 | . . . . 1 1 . Terrain Destroyed 58 | . 8 . . 1 39 10 Melee 1 | . . . . 1 . . Projectile 30 | . . . . . 23 7 AOE 22 | . 8 . . . 14 . Terrain Rammed . | . . . . . . . Walls Destroyed . | . . . . . . . Machines Disabled . | . . . . . . . Actions | -11 -10 -10 -9 -9 -9 -8 --------- Run | Jun Mat Min Mat Min Exi Min Total 3909 | 49 504 425 627 796 1381 127 Wait 257 | . 39 . 68 31 56 63 Move 3221 | 41 412 423 443 753 1128 21 Hop . | . . . . . . . Pick Up 44 | 1 14 . 13 1 15 . Fast Attach 19 | 6 2 . 5 . 6 . Attach 9 | . . . 1 . 5 3 Detach 3 | . . . . . 3 . Swap 29 | 1 3 . 13 2 6 4 Drop 42 | . 3 . 24 1 14 . Fire 198 | . 30 . 58 2 98 10 Melee 77 | . . . . 1 50 26 Ram . | . . . . . . . Kick . | . . . . . . . Crush 10 | . 1 2 2 5 . . Escape Stasis . | . . . . . . . Rewire . | . . . . . . . Trap . | . . . . . . . Miscellaneous . | . . . . . . . Route ------- -11/Junkyard -10/Materials (discovered 3 exits: *Mat / [*Min x2]) -10/Mines (discovered 2 exits: *Mat x2) -9/Materials (discovered 2 exits: *Min x2) -9/Mines (discovered 3 exits: [*Mat x2] / *Exi) -9/Exiles -8/Mines History --------- Turn | Location | Event 7 | -11/Junkyard | Discovered new exit (range 16) 73 | -11/Junkyard | Entered Materials 183 | -10/Materials | Discovered new exit (range 16) 310 | -10/Materials | Build established: Mutant 392 | -10/Materials | Discovered new exit (range 13) 741 | -10/Materials | Discovered new exit (range 16) 885 | -10/Materials | Entered Mines 951 | -10/Mines | Discovered new exit (range 11) 1113 | -10/Mines | Learned 2 Materials zone layouts 1282 | -10/Mines | Discovered new exit (range 10) 1565 | -10/Mines | Entered Materials 1565 | -9/Materials | Evolved 2 slots: Propulsion x1, Utility x1 1566 | -9/Materials | Identified exit to Mines 1865 | -9/Materials | Repaired Lgt. Treads 2280 | -9/Materials | Build established: Scavenger-Mutant 2561 | -9/Materials | Entered Mines 2656 | -9/Mines | A weapon hastily lodged in a ceiling crevice suddenly fell to the ground 2774 | -9/Mines | Learned 8 Materials zone layouts 2788 | -9/Mines | Assembled infested the area 2812 | -9/Mines | Met 8R-AWN 2831 | -9/Mines | Discovered new exit (range 15) 3045 | -9/Mines | Discovered new exit (range 7) 3112 | -9/Mines | Assisted by bots powering up and referring to "LRC-V3" 3140 | -9/Mines | Learned Materials emergency access door positions 3522 | -9/Mines | Received a Mining Laser from a helpful Derelict 3808 | -9/Mines | Discovered new exit (range 5) 3818 | -9/Mines | Entered Exiles 3818 | -9/Exiles | Accompanied by 2 allies 3848 | -9/Exiles | Led the pair of lost Derelicts to a safe place 3857 | -9/Exiles | Welcomed by 8R-AWN 3882 | -9/Exiles | Met EX-HEX 3943 | -9/Exiles | Met EX-DEC 4002 | -9/Exiles | Discovered new exit (range 12) 4093 | -9/Exiles | Learned location of Zion (-6) 4465 | -9/Exiles | Learned about 8R-AWN's background 4639 | -9/Exiles | Attacked by the Exiles 4803 | -9/Exiles | Core integrity fell below 50% 4804 | -9/Exiles | Destroyed 8R-AWN 4821 | -9/Exiles | Found Prototype Ballistic Gun 4821 | -9/Exiles | Identified 8R-AWN's Boregun 4824 | -9/Exiles | Found 8R-AWN's Boregun 4825 | -9/Exiles | Lost 5 parts (1p2n2u) 4841 | -9/Exiles | Found Prototype Device 4841 | -9/Exiles | Identified AS-neutralizer No. 17b 5291 | -9/Exiles | Destroyed EX-DEC 5355 | -9/Exiles | Destroyed EX-HEX 5392 | -9/Exiles | Destroyed EX-BIN 5451 | -9/Exiles | Found Prototype Processor 6119 | -9/Exiles | Found Prototype Processor 6194 | -9/Exiles | Entered Mines 6194 | -8/Mines | Accompanied by 1 ally 6289 | -8/Mines | 7V-RTL came to Exiles' defense 6289 | -8/Mines | Identified Exp. Core Analyzer 6379 | -8/Mines | Core integrity fell below 20% 6399 | -8/Mines | Destroyed by 7V-RTL with Dispersion Rifle Last Messages --------------- 06369_ K-01 Serf collects debris. 06370_ 7V-RTL Adv. Powered Armor severed. 06372_ Penetrated by Slug. 06372_ K-01 Serf collects debris. 06374_ Axe follow-up attack on 7V-RTL. 06376_ K-01 Serf collects debris. 06378_ Penetrated by Slug. 06379_ K-01 Serf collects debris. 06387_ Penetrated by Slug. 06387_ Mak. Sword destroyed. 06390_ Hvy. Deuterium Engine destroyed. 06390_ K-01 Serf collects debris. 06393_ U-05 Engineer destroyed. 06393_ Lgt. Armor Plating destroyed. 06393_ K-01 Serf collects debris. 06395_ U-05 Engineer builds a Wall. 06395_ Axe follow-up attack on 7V-RTL. 06397_ K-01 Serf collects debris. 06399_ Slug penetrates Wall. 06399_ Slug penetrates Earth. Map ----- +----------------------------------------------------+ | ?????????????????????????????????? | | ?????????????????????????????????? | | ?????????????????????????????????? | | ?????????????????????????????????? | | ?????????????????????????????????? | | ?????????????????????????????????? | | ?????????????????????????????????? | | ?????????????????????????????????? | | ?????????????????????????????????? | | ?????????????????????????????????? | | ?????????????????????????????????? | | ?????????????????????????????????? | | ?????????????????????????????????? | | ?????????????????????????????????? | | ?????????????????????????????????? | | ?????????????????????????????????? | | ????????????????????????????????? | | ? ???????????????????????????????? | | ?? ???##?????????????????????????? | | ??? #?# ?????????????????????????? | | ???# #? #?##?????????????????????? | | ??###;#; ? ?????????????????????? | | ??#;; #;#;##????????##??????????? | | ??#; ;; ######## #### #???? | | ?### *= ;; u #????? | | ?# ; @!% #?????????? | | ?# ## ;;;Y! #?????????? | | ?#??######### ##?????????? | | ????????????### k##??????????? | | ??????????????## ????????? | | ???????????????# #???????? | | ???????????????# ### #???????? | | ???????????????# ##??? #???????? | | ??????????????? #?????#???????? | | ??????????????? ##?????????????? | | ??????????????? ###??????????????? | | ??????????????? ?????????????????? | | ??????????????? ?????????????????? | | ??????????????? ?????????????????? | | ??????????????? ?????????????????? | | ??????????????? ?????????????????? | | ??????????????? ?????????????????? | | ?????????????????????????????????? | | ?????????????????????????????????? | | ?????????????????????????????????? | | ?????????????????????????????????? | | ?????????????????????????????????? | | ?????????????????????????????????? | | ?????????????????????????????????? | | ?????????????????????????????????? | +----------------------------------------------------+ Best States ------------- Heat Dissipation 28 Energy Generation 19 Energy Capacity 310 Matter Stores 300 Matter Capacity 300 Sight Range 16 Terrain Scan Density 10 Armor Coverage 300 Evasion (%) 40 Core Analysis 8 Recoil Reduction 3 Item Schematics ----------------- None Robot Schematics ------------------ None Fabricated ------------ Nothing Alien Tech Used ----------------- None Achievements -------------- None Challenges ------------ None Game ------ Seed FlightEncryptedActivator Manual? 0 Play Time 00:33:55 Cumulative 458.7 hours Start 2023.10.26 @ 19:41:47 End 2023.10.26 @ 20:25:34 Sessions 1 Manual Loads 0 Difficulty Rogue Special Mode None Game No. 542 Rogue 455 Adventurer 87 Explorer 0 Win Type - Total 26 Types 8/0/15/1/1/0/1/0/0 Lore% 89 Gallery% 92 Achievement% 76 Wizard Run 0 Options --------- ASCII 0 Keyboard 1 Movement Numpad Keybinds 0 Fullscreen 1 Font 18/SmallcapsGlow Map View 76x50 Tactical HUD 1 Map Filters NONE Filters NONE Steam 1 RUN: 836bba6e-7c87-48fe-b378-a58447a4279f